[Event "Fagernes Chess GM-Swiss 2025"]
[Site "Fagernes"]
[Date "2025.04.15"]
[Round "3.31"]
[White "Hausken, Andreas Skrede"]
[Black "Oksendal, Martin"]
[Result "0-1"]
[Annotator "RC"]
[ECO "B21"]
[WhiteElo "2002"]
[BlackElo "2250"]
[PlyCount "66"]
[EventDate "2025.04.12"]
[EventCountry "NOR"]
[SourceTitle "playchess.com"]
[Source "ChessBase"]
[SourceQuality "1"]
[TimeControl "40/6000+30:2400+30"]

1. e4 {[%emt 0:05:05]} c5 {[%emt 0:00:45]} 2. c3 {[%emt 0:00:07]} e5 {[%emt 0:00:09]} 3. d4 {[%emt 0:01:07]} cxd4 {[%emt 0:00:35]} 4. cxd4 {[%emt 0:00:08]} exd4 {[%emt 0:00:18]} 5. Nf3 {[%emt 0:02:14]} Bc5 {[%emt 0:05:07]} 6. Bc4 {[%emt 0:02:00]} Nc6 {[%emt 0:14:31]} 7. O-O {[%emt 0:00:43]} d6 {[%emt 0:06:10]} 8. b4 {[%emt 0:04:01]} Bb6 {[%emt 0:07:58]} 9. Qb3 {[%emt 0:00:15]} Qe7 {[%emt 0:03:48]} 10. Bb2 {[%emt 0:01:02]} Nf6 {[%emt 0:06:54]} 11. Nbd2 {[%emt 0:00:26]} O-O {[%emt 0:04:17]} 12. Rfe1 {[%emt 0:00:08]} Ng4 {[%emt 0:05:48]} 13. h3 {[%emt 0:00:59]} Nge5 {[%emt 0:02:00]} 14. Bd5 {[%emt 0:00:08]} Be6 {[%emt 0:04:35]} 15. a4 {[%emt 0:01:09]} a5 {[%emt 0:08:47]} 16. b5 {[%emt 0:00:50]} Nb4 {[%emt 0:02:33]} 17. Bxd4 {[%emt 0:00:21]} Bxd4 {[%emt 0:07:35]} 18. Nxd4 {[%emt 0:00:04]} Ned3 {[%emt 0:07:27]} 19. Re3 {[%emt 0:01:08]} Nf4 {[%emt 0:02:42]} 20. Bxe6 {[%emt 0:01:59]} fxe6 {[%emt 0:01:22]} 21. Nf5 {[%emt 0:01:23]} Qf6 {[%emt 0:02:04]} 22. Rf1 {[%emt 0:00:16]} d5 {[%emt 0:03:24]} 23. Ng3 {[%emt 0:01:25]} d4 {[%emt 0:01:24]} 24. Rf3 {[%emt 0:02:15]} Qg5 {[%emt 0:01:15]} 25. Rxf4 {[%emt 0:05:12]} Qxf4 {[%emt 0:01:53]} 26. Qxe6+ {[%emt 0:00:06]} Kh8 {[%emt 0:00:27]} 27. Nf3 {[%emt 0:00:19]} d3 {[%emt 0:01:51]} 28. Nf5 {[%emt 0:00:35]} Qc7 {[%emt 0:01:50]} 29. Qb3 {[%emt 0:03:18]} Qc2 {[%emt 0:00:39]} 30. Qe6 {[%emt 0:00:03]} Qc7 {[%emt 0:00:03]} 31. Qb3 {[%emt 0:00:08]} Rae8 {[%emt 0:01:38]} 32. Ng5 {[%emt 0:00:11]} Qd7 {[%emt 0:02:18]} 33. Rd1 {[%emt 0:00:35]} h6 {[%emt 0:01:02]} 0-1

[Event "Fagernes Chess GM-Swiss 2025"]
[Site "Fagernes"]
[Date "2025.04.15"]
[Round "3.32"]
[White "Aamodt, Peder Marcus"]
[Black "Halvorsen, Benjamin"]
[Result "1/2-1/2"]
[Annotator "RC"]
[ECO "E05"]
[WhiteElo "2242"]
[BlackElo "1966"]
[PlyCount "92"]
[EventDate "2025.04.12"]
[EventCountry "NOR"]
[SourceTitle "playchess.com"]
[Source "ChessBase"]
[SourceQuality "1"]
[TimeControl "40/6000+30:2400+30"]

1. d4 {[%emt 0:03:16]} d5 {[%emt 0:00:17]} 2. c4 {[%emt 0:00:46]} e6 {[%emt 0:00:09]} 3. Nf3 {[%emt 0:00:04]} Nf6 {[%emt 0:00:18]} 4. g3 {[%emt 0:00:30]} Be7 {[%emt 0:00:20]} 5. Bg2 {[%emt 0:00:07]} O-O {[%emt 0:00:23]} 6. O-O {[%emt 0:00:06]} dxc4 {[%emt 0:00:23]} 7. Qc2 {[%emt 0:00:05]} c6 {[%emt 0:00:25]} 8. a4 {[%emt 0:02:34]} b6 {[%emt 0:00:56]} 9. Nbd2 {[%emt 0:01:59]} Bb7 {[%emt 0:04:03]} 10. Nxc4 {[%emt 0:02:22]} c5 {[%emt 0:02:49]} 11. Be3 {[%emt 0:18:14]} Nbd7 {[%emt 0:07:00]} 12. Rfd1 {[%emt 0:02:00]} Rc8 {[%emt 0:04:01]} 13. b3 {[%emt 0:02:05]} Nd5 {[%emt 0:08:34]} 14. dxc5 {[%emt 0:17:49]} Nxe3 {[%emt 0:07:59]} 15. Nxe3 {[%emt 0:00:17]} Bxc5 {[%emt 0:07:11]} 16. Ng5 {[%emt 0:11:20]} Qxg5 {[%emt 0:01:18]} 17. Bxb7 {[%emt 0:01:06]} Rc7 {[%emt 0:02:07]} 18. Bg2 {[%emt 0:05:21]} Qxe3 {[%emt 0:03:42]} 19. fxe3 {[%emt 0:01:51]} Bxe3+ {[%emt 0:00:08]} 20. Kf1 {[%emt 0:00:02]} Rxc2 {[%emt 0:00:08]} 21. Rxd7 {[%emt 0:00:03]} Rfc8 {[%emt 0:05:15]} 22. Be4 {[%emt 0:01:08]} R2c7 {[%emt 0:07:15]} 23. Rad1 {[%emt 0:00:38]} Rxd7 {[%emt 0:02:17]} 24. Rxd7 {[%emt 0:00:06]} a5 {[%emt 0:00:20]} 25. Bd3 {[%emt 0:03:12]} Rc1+ {[%emt 0:04:50]} 26. Kg2 {[%emt 0:00:08]} g6 {[%emt 0:03:25]} 27. Bc4 {[%emt 0:00:29]} Bc5 {[%emt 0:02:24]} 28. h4 {[%emt 0:01:21]} h5 {[%emt 0:02:25]} 29. Rd3 {[%emt 0:01:45]} Kg7 {[%emt 0:01:26]} 30. Rf3 {[%emt 0:01:53]} Rg1+ {[%emt 0:01:50]} 31. Kh2 {[%emt 0:01:05]} Rd1 {[%emt 0:00:14]} 32. Rd3 {[%emt 0:00:39]} Rxd3 {[%emt 0:05:32]} 33. Bxd3 {[%emt 0:00:05]} f5 {[%emt 0:00:55]} 34. Kg2 {[%emt 0:00:21]} g5 {[%emt 0:04:48]} 35. hxg5 {[%emt 0:02:25]} Kg6 {[%emt 0:00:52]} 36. e4 {[%emt 0:00:03]} fxe4 {[%emt 0:01:36]} 37. Bxe4+ {[%emt 0:00:05]} Kxg5 {[%emt 0:00:05]} 38. Kf3 {[%emt 0:00:14]} Bb4 {[%emt 0:02:45]} 39. Bd3 {[%emt 0:00:37]} Be1 {[%emt 0:00:22]} 40. Bb5 {[%emt 0:00:17]} Kf5 {[%emt 0:02:11]} 41. Be8 {[%emt 0:40:10]} h4 {[%emt 0:40:32]} 42. gxh4 {[%emt 0:00:04]} Bxh4 {[%emt 0:00:05]} 43. Ke2 {[%emt 0:00:03]} Ke4 {[%emt 0:00:32]} 44. Bb5 {[%emt 0:00:04]} Kd4 {[%emt 0:01:47]} 45. Bc4 {[%emt 0:00:04]} e5 {[%emt 0:00:08]} 46. Bg8 {[%emt 0:00:03]} e4 {[%emt 0:01:58]} 1/2-1/2

[Event "Fagernes Chess GM-Swiss 2025"]
[Site "Fagernes"]
[Date "2025.04.15"]
[Round "3.33"]
[White "Ashwath Kaushik"]
[Black "Olsen, William Alexander"]
[Result "0-1"]
[Annotator "RC"]
[ECO "B32"]
[WhiteElo "1958"]
[BlackElo "2188"]
[PlyCount "54"]
[EventDate "2025.04.12"]
[EventCountry "NOR"]
[SourceTitle "playchess.com"]
[Source "ChessBase"]
[SourceQuality "1"]
[TimeControl "40/6000+30:2400+30"]

1. e4 {[%emt 0:00:05]} c5 {[%emt 0:00:06]} 2. Nf3 {[%emt 0:00:10]} Nc6 {[%emt 0:00:17]} 3. d4 {[%emt 0:00:16]} cxd4 {[%emt 0:00:05]} 4. Nxd4 {[%emt 0:00:07]} e5 {[%emt 0:00:44]} 5. Nb5 {[%emt 0:00:48]} d6 {[%emt 0:00:31]} 6. N1c3 {[%emt 0:00:17]} a6 {[%emt 0:00:24]} 7. Na3 {[%emt 0:00:05]} Rb8 {[%emt 0:00:39]} 8. Nd5 {[%emt 0:02:43]} Nf6 {[%emt 0:00:12]} 9. Bg5 {[%emt 0:00:30]} b5 {[%emt 0:06:32]} 10. c4 {[%emt 0:10:15]} Qa5+ {[%emt 0:07:04]} 11. Bd2 {[%emt 0:02:10]} b4 {[%emt 0:00:12]} 12. Nxf6+ {[%emt 0:04:10]} gxf6 {[%emt 0:00:06]} 13. Nc2 {[%emt 0:00:38]} Bh6 {[%emt 0:33:37]} 14. Bxh6 {[%emt 0:25:40]} b3+ {[%emt 0:00:05]} 15. Bd2 {[%emt 0:06:00]} bxc2 {[%emt 0:00:11]} 16. Qxc2 {[%emt 0:00:14]} Nd4 {[%emt 0:00:17]} 17. Qd1 {[%emt 0:00:33]} Qc5 {[%emt 0:02:20]} 18. Rb1 {[%emt 0:08:40]} f5 {[%emt 0:13:42]} 19. f3 {[%emt 0:06:32]} fxe4 {[%emt 0:01:52]} 20. fxe4 {[%emt 0:00:10]} Rg8 {[%emt 0:00:55]} 21. Be3 {[%emt 0:10:29]} Rg4 {[%emt 0:06:42]} 22. Qd3 {[%emt 0:08:14]} f5 {[%emt 0:02:28]} 23. exf5 {[%emt 0:07:07]} Qb4+ {[%emt 0:07:44]} 24. Bd2 {[%emt 0:07:34]} Qb7 {[%emt 0:02:18]} 25. Be2 {[%emt 0:05:36]} Bxf5 {[%emt 0:01:34]} 26. Qh3 {[%emt 0:01:06]} Re4 {[%emt 0:01:08]} 27. Qh5+ {[%emt 0:00:19]} Bg6 {[%emt 0:00:05]} 0-1

[Event "Fagernes Chess GM-Swiss 2025"]
[Site "Fagernes"]
[Date "2025.04.15"]
[Round "3.34"]
[White "Arvola, Daniel"]
[Black "Strand, Amund Pihl"]
[Result "1-0"]
[Annotator "NA RC"]
[ECO "B01"]
[WhiteElo "2088"]
[BlackElo "1914"]
[PlyCount "73"]
[EventDate "2025.04.12"]
[EventCountry "NOR"]
[SourceTitle "playchess.com"]
[Source "ChessBase"]
[SourceQuality "1"]
[TimeControl "40/6000+30:2400+30"]

1. e4 {[%emt 0:00:04]} d5 {[%emt 0:04:49]} 2. exd5 {[%emt 0:00:15]} Qxd5 {[%emt 0:00:07]} 3. Nc3 {[%emt 0:00:24]} Qd8 {[%emt 0:00:09]} 4. d4 {[%emt 0:01:40]} Nf6 {[%emt 0:01:27]} 5. Bc4 {[%emt 0:00:51]} Bg4 {[%emt 0:04:04]} 6. Nf3 {[%emt 0:13:13]} e6 {[%emt 0:07:59]} 7. h3 {[%emt 0:03:22]} Bxf3 {[%emt 0:00:50]} 8. Qxf3 {[%emt 0:00:12]} c6 {[%emt 0:01:13]} 9. Be3 {[%emt 0:02:08]} Bd6 {[%emt 0:09:16]} 10. g4 {[%emt 0:11:08]} Nbd7 {[%emt 0:07:50]} 11. O-O-O {[%emt 0:04:21]} Nb6 {[%emt 0:04:20]} 12. Be2 {[%emt 0:04:31]} Qc7 {[%emt 0:03:30]} 13. Rhe1 {[%emt 0:12:34]} Nbd5 {[%emt 0:13:47]} 14. Bd2 {[%emt 0:03:51]} O-O-O {[%emt 0:09:23]} 15. Kb1 {[%emt 0:02:15]} Nxc3+ {[%emt 0:04:14]} 16. Bxc3 {[%emt 0:00:40]} Nd5 {[%emt 0:00:12]} 17. Bd2 {[%emt 0:01:32]} Bf4 {[%emt 0:01:59]} 18. Be3 {[%emt 0:07:57]} Kb8 {[%emt 0:08:59]} 19. c4 {[%emt 0:02:15]} Nxe3 {[%emt 0:05:14]} 20. fxe3 {[%emt 0:00:16]} Bg5 {[%emt 0:00:49]} 21. Rf1 {[%emt 0:01:37]} Rd7 {[%emt 0:01:12]} 22. Qf2 {[%emt 0:04:20]} g6 {[%emt 0:05:49]} 23. h4 {[%emt 0:02:21]} Bh6 {[%emt 0:00:09]} 24. Bf3 {[%emt 0:00:57]} Rhd8 {[%emt 0:00:50]} 25. Bg2 {[%emt 0:02:38]} Bg7 {[%emt 0:01:30]} 26. Rd3 {[%emt 0:01:29]} e5 {[%emt 0:11:19]} 27. d5 {[%emt 0:01:05]} c5 {[%emt 0:00:15]} 28. g5 {[%emt 0:01:44]} Qd6 {[%emt 0:00:55]} 29. Bh3 {[%emt 0:00:45]} Re7 {[%emt 0:00:24]} 30. e4 {[%emt 0:00:25]} Rf8 {[%emt 0:00:42]} 31. Rf3 {[%emt 0:00:32]} Rc7 {[%emt 0:01:28]} 32. Qe2 {[%emt 0:01:03]} Re7 {[%emt 0:00:43]} 33. R1f2 {[%emt 0:00:43]} f5 {[%emt 0:00:58]} 34. exf5 {[%emt 0:04:08]} e4 {[%emt 0:00:29]} 35. f6 {[%emt 0:00:33]} Ree8 {[%emt 0:00:30]} 36. fxg7 {[%emt 0:00:38]} exf3 {[%emt 0:00:33]} 37. gxf8=Q {[%emt 0:00:34]} 1-0

[Event "Fagernes Chess GM-Swiss 2025"]
[Site "Fagernes"]
[Date "2025.04.16"]
[Round "4.1"]
[White "Urkedal, Frode Olav Olsen"]
[Black "Jumabayev, Rinat"]
[Result "0-1"]
[Annotator "TA"]
[ECO "D26"]
[WhiteElo "2550"]
[BlackElo "2549"]
[PlyCount "130"]
[EventDate "2025.04.12"]
[EventCountry "NOR"]
[SourceTitle "playchess.com"]
[Source "ChessBase"]
[SourceQuality "1"]
[TimeControl "40/6000+30:2400+30"]

{[%evp 11,130,16,52,22,23,29,9,14,30,22,26,21,27,12,20,0,0,0,0,-30,-16,-18,-22,-24,-16,-25,-25,-26,-20,-30,-22,-38,-48,-28,-42,-39,-32,-59,-31,-44,-37,-54,-61,-47,-54,-47,0,0,0,0,0,-2,0,0,0,-17,-17,-52,-50,-38,-42,-108,-54,-75,-53,-43,-51,-57,-43,-208,-208,-208,-208,-265,-260,-250,-240,-265,-265,-259,-257,-301,-301,-301,-266,-585,-288,-295,-288,-933,-899,-860,-778,-1139,-1105,-982,-890,-812,-750,-1752,-1536,-29954,-600,-2305,-2312,-1986,-1860,-1293,-1241,-1149,-1077,-29962,-29962,-29966,-29967,-29968,-29970,-7175,-5095,-29972,-5069]} 1. d4 {[%emt 0:01:14]} d5 {[%emt 0:01:28]} 2. c4 {[%emt 0:00:07]} dxc4 {[%emt 0:00:36]} 3. Nf3 {[%emt 0:01:33]} Nf6 {[%emt 0:05:50]} 4. e3 {[%emt 0:00:07]} e6 {[%emt 0:00:02]} 5. Bxc4 {[%emt 0:00:07]} a6 {[%emt 0:00:02]} 6. O-O {[%emt 0:00:46]} Be7 {[%emt 0:00:07]} 7. b3 {[%emt 0:02:52] D26: Queen's Gambit Accepted: 4 e3 e6 5 Bxc5 c5 sidelines.} Nbd7 {[%emt 0:03:25]} 8. Bb2 {[%emt 0:00:31]} O-O {[%emt 0:01:07]} 9. Nbd2 {[%emt 0:00:58] The position is equal.} b5 {[%emt 0:05:57]} 10. Be2 {[%emt 0:01:54]} Bb7 {[%emt 0:00:05]} 11. a4 {[%emt 0:00:10]} Qb8 {[%emt 0:10:04]} 12. axb5 $146 {[%emt 0:05:57]} (12. Qb1 c5 13. Rc1 cxd4 14. Nxd4 Bb4 15. N2f3 bxa4 16. Rxa4 Be4 17. Qa1 a5 18. Nc6 Bxc6 19. Rxc6 {0-1 Larsen,B (2570)-Speelman,J (2615) Hastings 8788 1987 (6)}) 12... axb5 {[%emt 0:03:24]} 13. Bd3 {[%emt 0:00:11]} c5 {[%emt 0:02:48]} 14. Qe2 {[%emt 0:03:09]} b4 {[%emt 0:01:58]} 15. Ne5 {[%emt 0:04:42]} cxd4 {[%emt 0:06:42]} 16. Nxd7 {[%emt 0:01:30]} (16. Rxa8 Bxa8 17. Nxd7 Nxd7 18. Bxd4 Bf6 19. Bxf6 Nxf6 20. e4) 16... Nxd7 {[%emt 0:00:05]} 17. Bxd4 {[%emt 0:00:05]} (17. Rxa8 Bxa8 18. Bxd4 Bf6 19. Bxf6 Nxf6 20. e4) 17... Bf6 {[%emt 0:01:13]} (17... Rxa1 18. Rxa1 Bf6 19. Nc4 Bxd4 20. exd4 Rd8) 18. Qh5 {[%emt 0:15:16][%csl Gd3][%cal Rh5h7]} (18. Rxa8 Bxa8 19. Bxf6 Nxf6 20. e4) 18... h6 {[%emt 0:03:58]} 19. Qb5 {[%emt 0:29:40][%csl LRb4,LRd7]} Bxd4 {[%emt 0:08:48]} 20. exd4 {[%emt 0:00:09]} Nf6 {[%emt 0:01:51]} 21. Qxb4 {[%emt 0:02:56]} Nd5 {[%emt 0:06:10]} 22. Rxa8 $1 {[%emt 0:10:33]} Qxa8 {[%emt 0:00:35]} 23. Qd6 {[%emt 0:01:48]} Rd8 {[%emt 0:01:56]} 24. Qg3 {[%emt 0:00:05]} Nf6 {[%emt 0:09:12]} 25. Nc4 {[%emt 0:06:02]} Rxd4 {[%emt 0:04:43]} 26. Be2 {[%emt 0:00:07] Prevents Rg4.} Nd5 {[%emt 0:04:48][%cal Bf6d5,Bd5f4,Bf4d3][%mdl 32]} 27. Re1 $1 {[%emt 0:09:34]} Nf4 {[%emt 0:02:05] ( -> ...Nxe2+)} 28. Bf1 {[%emt 0:00:06]} h5 {[%emt 0:06:53]} (28... f6 $15) 29. h3 $1 $11 {[%emt 0:03:23]} Qd8 {[%emt 0:01:52]} 30. Qc3 {[%emt 0:04:02]} Rd5 {[%emt 0:10:44]} 31. g3 {[%emt 0:03:51]} Nd3 {[%emt 0:02:38]} 32. Re3 {[%emt 0:00:08]} Nc5 {[%emt 0:00:54]} 33. Ne5 {[%emt 0:00:22]} h4 {[%emt 0:02:08]} 34. Nd3 {[%emt 0:01:45]} Qd6 {[%emt 0:01:42]} 35. gxh4 {[%emt 0:01:14][%csl Ob3,Of2,Oh3,Oh4] White has weak pawns} Qc6 {[%emt 0:01:31][%cal Od5g5] ( -> ...Rg5+!)} 36. f3 {[%emt 0:00:49]} (36. Nb4 $2 Rg5+ 37. hxg5 Qh1#) ({Better is} 36. Bg2 $1 $15 Rg5 37. f3 Nxd3 38. Rxd3 (38. Qxc6 Rxg2+ 39. Kxg2 Nf4+ 40. Kg3 Nh5+ 41. Kf2 Bxc6 $15)) 36... Qb6 {[%emt 0:00:34]} (36... Qd6 $17 37. b4 Nxd3 38. Rxd3 Rxd3 39. Qxd3 Qxb4 40. Qd8+ Kh7 41. Bd3+ f5) 37. Qb4 $15 {[%emt 0:00:32]} Qd6 {[%emt 0:00:30]} 38. Kg2 {[%emt 0:00:39] Prevents Qg3+} (38. Nxc5 $2 Qg3+ (38... Qxc5 39. Qxc5 Rxc5 40. Kf2 $11) 39. Kh1 Rd1 $19) 38... Ba6 {[%emt 0:00:30]} (38... Qc7 39. Qc3 Qb6 40. Qb4 Qxb4 41. Nxb4 Rd4) 39. Nf2 {[%emt 0:00:25]} Rd2 $36 {[%emt 0:00:26][%mdl 2048] Black has some pressure.} (39... Bxf1+ {simplifies} 40. Kxf1 Qd8 41. Rc3 Nd7) 40. Bxa6 {[%emt 0:00:30] [#] Loses the game.} (40. Qc3 $15) 40... Rxf2+ $1 $19 {[%emt 0:00:26]} (40... Nxa6 41. Qxd6 Rxd6 42. Rd3 $11) 41. Kxf2 {[%emt 0:40:06] [#]} Nd3+ $1 {[%emt 0:40:06][%mdl 512]} 42. Rxd3 {[%emt 0:00:18]} (42. Bxd3 Qxb4) 42... Qxb4 {[%emt 0:00:02][%mdl 4096] Endgame KQ-KRB} 43. Bc4 {[%emt 0:00:00]} Qb8 {[%emt 0:00:00]} 44. Kg2 {[%emt 0:00:00]} Qf4 {[%emt 0:00:00] Wards off Rd4} 45. Rd8+ {[%emt 0:00:00]} Kh7 {[%emt 0:00:00]} 46. Rd7 {[%emt 0:00:00]} Kg6 {[%emt 0:00:00]} (46... Qxh4 47. Rxf7 Qg5+ 48. Kf1 $17) 47. Ra7 {[%emt 0:00:00]} Qd2+ {[%emt 0:00:00]} 48. Kg3 $2 {[%emt 0:00:00]} (48. Kf1 {was the crucial defense.}) 48... Qe1+ {[%emt 0:00:00]} ({Not} 48... Qd6+ 49. Kg2 $17) (48... f5 $142 {( -> ...f4+)} 49. Ra6 Kh5) 49. Kg2 {[%emt 0:00:00]} Qxh4 {[%emt 0:00:00]} 50. Bxe6 $2 {[%emt 0:00:00]} (50. Ra2) 50... fxe6 {[%emt 0:00:00] KQ-KR} 51. Ra4 {[%emt 0:00:00]} Qe1 {[%emt 0:00:00] Strongly threatening ...Qd2+.} 52. Re4 {[%emt 0:00:00]} Qd2+ {[%emt 0:00:00]} 53. Kg3 {[%emt 0:00:00]} Qd1 {[%emt 0:00:00]} 54. Rg4+ {[%emt 0:00:00]} Kf6 {[%emt 0:00:00] ( -> ...Qg1+)} 55. Rf4+ {[%emt 0:00:00]} Ke7 {[%emt 0:00:00]} 56. Rg4 {[%emt 0:00:00]} Kf8 {[%emt 0:00:00]} (56... Qg1+ $142 57. Kf4 Qe1 58. h4 Kf6 59. Rg2 Qxh4+ 60. Ke3 Qe1+ 61. Re2 Qg1+ 62. Kd2 Qg3 63. Re3 Qf2+ (63... Qg5 $2 64. b4 $19) 64. Re2 Qxf3 65. Re3 Qg2+ 66. Re2 Qd5+ 67. Ke1 Kf5 (67... Qxb3 $2 68. Rf2+ Kg5 69. Rg2+ Kf4 70. Rf2+ $19) 68. Rf2+ Kg4 69. Rf7 Qxb3 70. Ke2 g5 71. Kd2 e5 72. Rc7 e4 73. Rc8 e3+ 74. Ke2 Qa2+ (74... Qe6 $2 75. Rc1 $19) 75. Kxe3 Qe6+ 76. Kd4 Qxc8 77. Kd5 Kf3 78. Kd6 g4 79. Ke7 g3 80. Kd6 g2 81. Kd5 g1=Q (81... g1=R {leads to mate.} 82. Ke5 Rg6 83. Kd5 Kf4 84. Kd4 Rd6#) 82. Ke5 Qd7 83. Kf6 Qgg7#) 57. b4 {[%emt 0:00:00]} Qg1+ {[%emt 0:00:00]} 58. Kf4 {[%emt 0:00:00]} Qh2+ {[%emt 0:00:00]} 59. Ke3 {[%emt 0:00:00]} Qxh3 {[%emt 0:00:00]} 60. Kf2 {[%emt 0:00:00] Against Qf1+} Qh2+ {[%emt 0:00:00]} 61. Kf1 {[%emt 0:00:00]} Kf7 {[%emt 0:00:00]} 62. Ke1 {[%emt 0:00:00]} Kf6 {[%emt 0:00:00]} 63. Kf1 {[%emt 0:00:00]} Qd2 {[%emt 0:00:00]} 64. Re4 {[%emt 0:00:00]} Kf5 {[%emt 0:00:00] ( -> ...Qd5)} 65. Rg4 {[%emt 0:00:00]} g6 {[%emt 0:00:00] Weighted Error Value: White=0.55/Black=0.13 (very precise)   Loses game:     	White=1     	---        Mistake:       	White=3     	Black=3      Inaccurate:     	White=3     	Black=1      OK:         	White=14    	Black=26     Best:        	White=1     	---        Strong:       	White=3     	Black=1      Brilliant:      	---       	Black=1} (65... Qe3 $142 66. Kg2 Qe2+ 67. Kg3 g5 68. b5 Qf1 (68... Qxb5 $2 69. Kf2 $19) 69. b6 Qg1+ 70. Kh3 Qf2 (70... Qxb6 $2 71. Kg2 $19) 71. b7 Qxf3+ 72. Kh2 Qxb7 (72... Kxg4 $2 73. b8=Q $19) 73. Rg1 Qh7+ 74. Kg2 Kg4 75. Ra1 Qe4+ 76. Kf2 Qd4+ 77. Ke2 Qxa1 78. Kd2 Kf3 79. Kd3 Qa4 80. Kc3 Ke2 81. Kb2 Kd3 82. Kb1 Kc3 83. Kc1 Qc2#) 0-1

[Event "Fagernes Chess GM-Swiss 2025"]
[Site "Fagernes"]
[Date "2025.04.16"]
[Round "4.2"]
[White "Raja Rithvik R"]
[Black "Makhnev, Denis"]
[Result "1/2-1/2"]
[Annotator "TA"]
[ECO "E51"]
[WhiteElo "2538"]
[BlackElo "2537"]
[PlyCount "30"]
[EventDate "2025.04.12"]
[EventCountry "NOR"]
[SourceTitle "playchess.com"]
[Source "ChessBase"]
[SourceQuality "1"]
[TimeControl "40/6000+30:2400+30"]

{[%evp 10,30,2,-8,19,14,16,22,18,10,10,5,0,-15,-12,-15,-19,-19,-20,-31,-16,-18,-32]} 1. d4 {[%emt 0:03:51]} Nf6 {[%emt 0:00:10]} 2. c4 {[%emt 0:00:15]} e6 {[%emt 0:00:07]} 3. Nc3 {[%emt 0:00:06]} Bb4 {[%emt 0:00:07]} 4. e3 {[%emt 0:00:05]} O-O {[%emt 0:00:09]} 5. Bd2 {[%emt 0:00:05]} d5 {[%emt 0:00:50]} 6. Nf3 {[%emt 0:00:09]} Re8 {[%emt 0:00:39] E51: Nimzo-Indian: Rubinstein: 4...0-0 5 Nf3 d5.} 7. Rc1 {[%emt 0:16:30]} a6 {[%emt 0:07:44]} 8. Bd3 {[%emt 0:15:09]} dxc4 {[%emt 0:07:32]} 9. Bxc4 {[%emt 0:00:05]} Nbd7 {[%emt 0:00:37]} 10. O-O {[%emt 0:02:51]} b5 {[%emt 0:01:24]} 11. Be2 {[%emt 0:05:44]} Bd6 {[%emt 0:06:58]} 12. Ng5 $5 $146 {[%emt 0:01:45][%mdl 8] New and interesting.} (12. e4 e5 13. Bg5 h6 14. Bh4 Bb7 15. dxe5 Nxe5 16. Nxe5 Bxe5 17. f3 Qe7 18. Qe1 {0-1 Sabuk,P (2406)-Krzyzanowski,M (2510) Katowice Silesia 100th Ann op rapid 2024 (10)}) 12... Bb7 {[%emt 0:09:29]} 13. Bf3 {[%emt 0:00:47]} Bxf3 {[%emt 0:00:10]} 14. Qxf3 {[%emt 0:02:02]} c5 {[%emt 0:24:44]} 15. Nge4 {[%emt 0:11:48]} cxd4 {[%emt 0:01:48] A rather calm draw.   Weighted Error Value: White=0.05 (flawless) /Black=0.03 (flawless)   OK:         	---       	Black=4      Best:        	---       	Black=1} 1/2-1/2

[Event "Fagernes Chess GM-Swiss 2025"]
[Site "Fagernes"]
[Date "2025.04.16"]
[Round "4.3"]
[White "Moksh Amit Doshi"]
[Black "Ghasi, Ameet K"]
[Result "1/2-1/2"]
[Annotator "RC"]
[ECO "E95"]
[WhiteElo "2369"]
[BlackElo "2502"]
[PlyCount "65"]
[EventDate "2025.04.12"]
[EventCountry "NOR"]
[SourceTitle "playchess.com"]
[Source "ChessBase"]
[SourceQuality "1"]
[TimeControl "40/6000+30:2400+30"]

1. d4 {[%emt 0:10:08]} Nf6 {[%emt 0:01:31]} 2. c4 {[%emt 0:00:12]} g6 {[%emt 0:00:04]} 3. Nc3 {[%emt 0:00:07]} Bg7 {[%emt 0:00:05]} 4. e4 {[%emt 0:00:10]} d6 {[%emt 0:00:03]} 5. Nf3 {[%emt 0:00:09]} O-O {[%emt 0:00:28]} 6. Be2 {[%emt 0:00:07]} e5 {[%emt 0:00:06]} 7. O-O {[%emt 0:00:06]} h6 {[%emt 0:00:39]} 8. Re1 {[%emt 0:00:08]} Nbd7 {[%emt 0:00:39]} 9. Bf1 {[%emt 0:00:10]} Re8 {[%emt 0:01:25]} 10. Rb1 {[%emt 0:07:46]} exd4 {[%emt 0:03:16]} 11. Nxd4 {[%emt 0:03:03]} Ne5 {[%emt 0:00:24]} 12. h3 {[%emt 0:04:35]} Nc6 {[%emt 0:01:36]} 13. Nc2 {[%emt 0:06:20]} Be6 {[%emt 0:12:08]} 14. Be3 {[%emt 0:02:34]} Ne5 {[%emt 0:06:58]} 15. b3 {[%emt 0:03:31]} g5 {[%emt 0:02:44]} 16. Nd4 {[%emt 0:05:13]} Qd7 {[%emt 0:07:51]} 17. Qc2 {[%emt 0:03:49]} g4 {[%emt 0:14:57]} 18. h4 {[%emt 0:12:24]} c6 {[%emt 0:12:30]} 19. Rbd1 {[%emt 0:03:49]} Qc7 {[%emt 0:00:59]} 20. Nce2 {[%emt 0:06:13]} Ng6 {[%emt 0:04:38]} 21. g3 {[%emt 0:02:20]} Qa5 {[%emt 0:07:03]} 22. Nxe6 {[%emt 0:07:35]} fxe6 {[%emt 0:01:45]} 23. Bg2 {[%emt 0:06:38]} Rad8 {[%emt 0:00:54]} 24. Qd2 {[%emt 0:03:17]} Qxd2 {[%emt 0:00:54]} 25. Rxd2 {[%emt 0:00:07]} b6 {[%emt 0:02:53]} 26. Red1 {[%emt 0:01:40]} Bf8 {[%emt 0:00:29]} 27. c5 {[%emt 0:02:30]} bxc5 {[%emt 0:01:00]} 28. Bxc5 {[%emt 0:00:12]} Rd7 {[%emt 0:00:51]} 29. Ba3 {[%emt 0:05:52]} Ne5 {[%emt 0:02:26]} 30. Bb2 {[%emt 0:03:38]} Rf7 {[%emt 0:02:14]} 31. Bxe5 {[%emt 0:03:39]} dxe5 {[%emt 0:00:02]} 32. Nc1 {[%emt 0:00:11]} Bc5 {[%emt 0:04:16]} 33. Nd3 {[%emt 0:02:10]} 1/2-1/2